Cogmind - Beta 13 @@@ ROGUE MODE // 2024.05.04 @ 23:05:06 Player: Chickoo Result: Destroyed by D-53 Grenadier with Mini Grenade Launcher Performance ------------- Evolutions (0) 0 Regions Visited (2) 400 Robots Destroyed (11) 55 Value Destroyed (240) 240 Prototype IDs (2) 40 Alien Tech Used (0) 0 Bonus (-34) -34 TOTAL SCORE: 701 Bonus ------- Friendly Fire -34 Cogmind --------- Core Integrity 0/250 Matter 268/300 Energy 94/100 System Corruption 11% Temperature Hot (213) Movement Core (100) Ox1 Location -10/Mines Parts ------- > --- POWER (1) -------- (None) > --- PROPULSION (2) --- (None) > --- UTILITY (2) ------ Small Storage Unit > --- WEAPON (2) ------- (None) > --- INVENTORY (8) ---- Heavy Ion Engine Heavy Ion Engine Wheel ECM Suite Makeshift Cloaking Device Peak State ------------ > --- POWER ------------ Heavy Ion Engine > --- PROPULSION ------- Wheel Wheel > --- UTILITY ---------- Small Storage Unit Makeshift Cloaking Device > --- WEAPON ----------- Advanced Beam Cannon EMP Blaster > --- INVENTORY -------- Heavy Ion Engine Heavy Ion Engine ECM Suite Advanced Beam Cannon Light Assault Rifle [Rating: 17] Favorites ----------- Power Heavy Ion Engine Engine Heavy Ion Engine Propulsion Wheel Leg Aluminum Leg Wheel Wheel Utility Small Storage Unit Device Makeshift Cloaking Device Storage Small Storage Unit Weapon Assault Rifle Energy Cannon Advanced Beam Cannon Ballistic Gun Assault Rifle Launcher EMP Blaster Build | -11 -10 -10 ------- Run | Yrd Mat Min Slots Evolved . | . . . Power . | . . . Propulsion . | . . . Utility . | . . . Weapon . | . . . Parts Attached 20 | 8 5 7 Power 2 | 1 1 . Engine 2 | 1 1 . Core . | . . . Reactor . | . . . Propulsion 6 | 4 . 2 Treads . | . . . Leg 2 | 2 . . Wheel 4 | 2 . 2 Hover . | . . . Flight . | . . . Utility 2 | 1 . 1 Device 1 | . . 1 Storage 1 | 1 . . Processor . | . . . Hackware . | . . . Protection . | . . . Artifact . | . . . Weapon 10 | 2 4 4 Energy Gun . | . . . Energy Cannon 5 | . 3 2 Ballistic Gun 4 | 2 1 1 Ballistic Cannon . | . . . Launcher 1 | . . 1 Special Weapon . | . . . Impact Weapon . | . . . Slashing Weapon . | . . . Piercing Weapon . | . . . Special Melee Weapon . | . . . Unidentified Prototypes 2 | . 2 . Parts Lost 10 | . . 10 Power 1 | . . 1 Propulsion 4 | . . 4 Utility . | . . . Weapon 5 | . . 5 Highest Loss Streak 7 | . . 7 To Critical Strikes . | . . . Average Slot Usage (%) 79 | . 85 75 Engine 13 | . 14 12 Wheel 24 | . 28 20 Storage 14 | . 14 14 Energy Cannon 10 | . 8 12 Ballistic Gun 14 | . 20 10 Launcher 1 | . . 3 Naked Turns . | . . . Heaviest Build 22 | 11 19 22 Greatest Support 26 | 26 26 26 Greatest Overweight (x) 6 | 2 . 6 Average Overweight (x) . | . . . Largest Inventory Capacity 8 | 8 8 8 Average Capacity 7 | 7 8 8 Most Carried 6 | 1 6 6 Average Carried 4 | . 3 5 Final Capacity 8 | 8 8 8 Final Carried 6 | 1 6 5 Class Distribution -------------------- 100% | Mutant Dominant Class ---------------- Mutant | -10/Materials Mutant | -10/Mines Resources | -11 -10 -10 ----------- Run | Yrd Mat Min Matter Collected 445 | 172 130 143 Remotely . | . . . Salvage Created 350 | . 203 147 Parts 19 | . 16 3 Haulers Intercepted 1 | . 1 . Recyclers Shooed . | . . . Parts Field Recycled . | . . . Retrieved Matter . | . . . Parts Self-Destructed . | . . . Prevented . | . . . Kills | -11 -10 -10 ------- Run | Yrd Mat Min Combat Hostiles Destroyed 13 | . 5 8 Guns 3 | . 2 1 Cannons 2 | . . 2 AOE 8 | . 3 5 Classes Destroyed 9 | . 6 3 Builder 1 | . 1 . Hauler 1 | . 1 . Recycler 1 | . 1 . Watcher 1 | . 1 . Swarmer 3 | . 3 . Grunt 2 | . 2 . Demolisher 1 | . . 1 Zionite 1 | . . 1 Assembled 7 | . . 7 Best Kill Streak 7 | . 5 7 Combat Bots Only 7 | . 3 7 Max Kills in Single Turn 5 | . 5 3 Gunslinging . | . . . Exploded 3 | . 3 2 Melee . | . . . Uniques/NPCs Destroyed . | . . . Combat | -11 -10 -10 -------- Run | Yrd Mat Min Hostile Shots Fired 58 | . 18 40 Missed 12 | . 6 6 Damage Taken 1169 | . 102 1067 Core 256 | . 34 222 Absorbed by Shields . | . . . Core Remaining (%) 100 | 100 . . Volleys Fired 36 | 1 17 18 Largest 2 | 2 2 2 Hottest 136 | 40 88 136 Shots Fired 68 | 2 34 32 Gun 42 | 2 29 11 Cannon 21 | . 5 16 Launcher 5 | . . 5 Special . | . . . Kinetic 42 | 2 29 11 Thermal 21 | . 5 16 Explosive . | . . . Electromagnetic 5 | . . 5 Robot Hit Streak 6 | 1 5 6 Robot Miss Streak 6 | 1 5 6 Penetration Max . | . . . Secondary Targets . | . . . Shots Hit Robots 28 | 1 13 14 Core Hits 32 | . 13 19 Critical Kills . | . . . Critical Parts Destroyed . | . . . Critical Strikes . | . . . Melee Attacks . | . . . Impact . | . . . Slashing . | . . . Piercing . | . . . Sneak Attacks . | . . . Combat Hostiles . | . . . Follow-up Attacks . | . . . Damage Inflicted 1591 | 20 933 638 Guns 178 | 20 119 39 Cannons 246 | . 41 205 Explosions 1167 | . 773 394 Melee . | . . . Ramming . | . . . Kinetic 178 | 20 119 39 Thermal 793 | . 494 299 Explosive 320 | . 320 . Electromagnetic 300 | . . 300 Impact . | . . . Slashing . | . . . Piercing . | . . . Highest Corruption 11 | . 5 11 Average Corruption 6 | . 5 6 Corruption Purged . | . . . Corruption Blocked . | . . . Effects 10 | . 3 7 Message Errors 1 | . . 1 Matter Fused 3 | . 1 2 Heat Flow Errors 1 | . 1 . Energy Discharges 2 | . 1 1 Parts Fused 1 | . . 1 Data Loss (major) 1 | . . 1 Misfires 1 | . . 1 Overload Shots . | . . . Overflow Damage 58 | . 55 3 Projectiles . | . . . Explosions 58 | . 55 3 Melee . | . . . Knockbacks . | . . . Impact . | . . . Kinetic . | . . . Secondary . | . . . Self-Inflicted Damage 66 | . . 66 Shots 4 | . . 4 Rammed . | . . . Targets Rammed . | . . . Kicked . | . . . Crushed . | . . . Highest Temperature 263 | . 232 263 Average Temperature 98 | . 69 114 Received Heat Transfer 100 | . . 100 Siege Activations . | . . . Robots Corrupted . | . . . Combat Hostiles . | . . . Parts Fried . | . . . Impact Corruptions . | . . . Robots Melted . | . . . Combat Hostiles . | . . . Parts Melted . | . . . Heat Transferred 894 | . 374 520 Parts Sabotaged . | . . . Parts Stolen . | . . . Parts Stripped . | . . . Power Chain Reactions 2 | . . 2 Alert | -11 -10 -10 ------- Run | Yrd Mat Min Peak Influence 287 | . 287 127 Initial 111 | . . 111 Average 147 | . 234 101 Maximum Alert Level 1 | . 1 . Low Security (%) 66 | 100 22 100 Level 1 33 | . 77 . Level 2 . | . . . Level 3 . | . . . Level 4 . | . . . Level 5 . | . . . High Security . | . . . Max Security . | . . . Squads Dispatched 1 | . 1 . Investigation . | . . . Extermination . | . . . Reinforcement 1 | . 1 . Assault . | . . . Garrison . | . . . Intercept . | . . . Searches Triggered . | . . . Construction Impeded . | . . . Haulers Reinforced . | . . . Active Scanning Responses . | . . . Cargo Convoy Interrupts . | . . . Stealth | -11 -10 -10 --------- Run | Yrd Mat Min Distress Signals 1 | . 1 . Communications Jammed . | . . . Distress Signals . | . . . Times Spotted 30 | . 12 18 Peak Tracking Total 14 | . 4 14 Tactical Retreats 2 | . 1 1 Traps | -11 -10 -10 ------- Run | Yrd Mat Min Traps Triggered . | . . . Indirectly . | . . . Trap Hack Attempts . | . . . Triggered . | . . . Disarmed . | . . . Reprogrammed . | . . . Reused . | . . . Traps Extracted . | . . . Installed . | . . . Triggered . | . . . Machines | -11 -10 -10 ---------- Run | Yrd Mat Min Machines Disabled 6 | . 6 . Max in Single Turn 6 | . 6 . Machines Repaired . | . . . Machines Dismantled . | . . . Machines Sabotaged . | . . . Overloaded Fab Kills . | . . . Hacking | -11 -10 -10 --------- Run | Yrd Mat Min Machines Accessed 2 | . 2 . Terminals 2 | . 2 . Fabricators . | . . . Repair Stations . | . . . Recycling Units . | . . . Scanalyzers . | . . . Garrison Access . | . . . Total Hacks 7 | . 7 . Successful 2 | . 2 . Failed 5 | . 5 . Catastrophic . | . . . Database Lockouts . | . . . Manual 4 | . 4 . Terminals 7 | . 7 . Fabricators . | . . . Repair Stations . | . . . Recycling Units . | . . . Scanalyzers . | . . . Garrison Access . | . . . Terminal Hacks 2 | . 2 . Robot Analysis 1 | . 1 . Alert Level 1 | . 1 . Fabricator Hacks . | . . . Repair Station Hacks . | . . . Recycling Unit Hacks . | . . . Scanalyzer . | . . . Garrison Access Hacks . | . . . Unauthorized Hacks . | . . . Terminals . | . . . Fabricators . | . . . Repair Stations . | . . . Recycling Units . | . . . Scanalyzers . | . . . Garrison Access . | . . . Data Cores Recovered . | . . . Used . | . . . Hacking Detections 2 | . 2 . Full Trace Events . | . . . Feedback Events . | . . . Feedback Blocked . | . . . Robot Schematics Acquired . | . . . Robots Built . | . . . Authchips . | . . . Time . | . . . Total Robot Build Rating . | . . . Part Schematics Acquired . | . . . Parts Built . | . . . Authchips . | . . . Time . | . . . Total Part Build Rating . | . . . Parts Repaired . | . . . Time . | . . . Parts Recycled . | . . . Recycled Matter . | . . . Retrieved Matter . | . . . Retrieved Components . | . . . Parts Scanalyzed . | . . . Part Schematics Acquired . | . . . Parts Damaged . | . . . Bothacking | -11 -10 -10 ------------ Run | Yrd Mat Min Used RIF Installer . | . . . Robots Hacked . | . . . Non-combat . | . . . Combat . | . . . Robot Hacks Applied . | . . . Relay Couplers Released . | . . . Fabnet Peak Effective % . | . . . Robots Rewired . | . . . Allies Hacked . | . . . Hacks Repelled . | . . . Allies | -11 -10 -10 -------- Run | Yrd Mat Min Total Allies 2 | . . 2 Largest Group 2 | . . 2 Highest-Rated Group 48 | . . 48 Highest-Rated Ally 31 | . . 31 Total Orders . | . . . Ally Attacks 15 | . . 15 Total Damage 170 | . . 170 Kills 4 | . . 4 Allies Corrupted . | . . . Allies Melted . | . . . Intel | -11 -10 -10 ------- Run | Yrd Mat Min Robot Analysis Total 1 | . 1 . Derelict Logs Recovered . | . . . Drone Launches . | . . . Drone Recoveries . | . . . Exploration | -11 -10 -10 ------------- Run | Yrd Mat Min Turns Passed 491 | 53 211 227 Spaces Moved 377 | 38 163 176 Core 14 | 8 . 6 Treads . | . . . Legs 5 | 5 . . Wheels 358 | 25 163 170 Hover . | . . . Flight . | . . . Fastest Speed 50 | 50 90 90 Average Speed 93 | 96 90 96 Slowest Speed 350 | 150 90 350 Overloaded Moves . | . . . Propulsion Burnouts . | . . . Robots Hopped . | . . . Cave-ins Triggered . | . . . Exploration Rate (%) 33 | 4 41 56 Regions Visited 2 Branch Regions 1 Pre-discovered Areas . | . . . Known Exits Taken . | . . . Unknown Exits Taken 2 | 1 1 . Scrap Searched 1 | . . 1 Spaces Dug . | . . . Terrain Destroyed 28 | . 16 12 Melee . | . . . Projectile 1 | . . 1 AOE 27 | . 16 11 Terrain Rammed . | . . . Walls Destroyed . | . . . Machines Disabled . | . . . Actions | -11 -10 -10 --------- Run | Yrd Mat Min Total 447 | 49 195 203 Wait 1 | . 1 . Move 375 | 37 162 176 Hop . | . . . Pick Up 7 | 1 5 1 Fast Attach 14 | 8 3 3 Attach 3 | . . 3 Detach 3 | . 2 1 Swap 3 | . 2 1 Drop 5 | 2 3 . Fire 36 | 1 17 18 Melee . | . . . Ram . | . . . Kick . | . . . Crush . | . . . Escape Stasis . | . . . Rewire . | . . . Trap . | . . . Miscellaneous . | . . . Route ------- -11/Scrapyard -10/Materials -10/Mines History --------- Turn | Location | Event 4 | -11/Scrapyard | Discovered new exit (range 16) 54 | -11/Scrapyard | Entered Materials 199 | -10/Materials | Discovered new exit (range 16) 265 | -10/Materials | Entered Mines 312 | -10/Mines | Build established: Mutant 373 | -10/Mines | Assembled infested the area 378 | -10/Mines | Assisted by a Guerilla fighting off Assembled 420 | -10/Mines | System corruption reached 10% 439 | -10/Mines | Destroyed 7 combat bots 450 | -10/Mines | Lost 3 parts (2n1w) 467 | -10/Mines | Core integrity fell below 50% 477 | -10/Mines | Lost 3 allies 489 | -10/Mines | Core integrity fell below 20% 492 | -10/Mines | Destroyed by D-53 Grenadier with Mini Grenade Launcher Last Messages --------------- 00453_ Found 29 Matter. 00454_ Acquired 29 matter. 00455_ Acquired Wheel. 00458_ Wheel destroyed. 00458_ EMP Blaster destroyed. 00461_ The unstable cave ceiling collapses. 00462_ D-53 Grenadier IFF system glitched. 00464_ Adv. Beam Cannon destroyed. 00465_ The unstable cave ceiling collapses. 00466_ Hvy. Ion Engine destroyed. 00468_ D-53 Grenadier destroyed. 00471_ D-53 Grenadier misfires. 00472_ The unstable cave ceiling collapses. 00475_ |AXHX48JREQ 00481_ Wheel destroyed. 00481_ Lgt. Assault Rifle destroyed. 00487_ The unstable cave ceiling collapses. 00488_ Adv. Beam Cannon destroyed. 00489_ The unstable cave ceiling collapses. Map ----- +----------------------------------------------------+ | | | | | | | ?????????????????????????????????????????????????? | | ?????????????????????????????????????????????????? | | ?????????????????????????????????????????????????? | | ?????????????????????????????????????????????????? | | ?????????????????????????????????????????????????? | | ?????????????????????????????????????????????????? | | ?????????????????????????????????????????????????? | | ????????????????????????? ???????????????????????? | | ????????????????????????? ????????????????????#### | | ????????????????????????? ???????????????????## | | ???????????????????????## ???????????????????# | | ?????????????????????### ???????????????????# | | ????????????????????? ??????????????????## | | ?????????????????????? ??????????????????# | | ?????????????????????? #?????????????????# | | ??????????????????????%= ##????????????????# | | ???????????????????????! ##??????????????## # | | ??????????????????????? ??????????????## # | | ???????????????????????# ##????????????# # | | ????????????????????#### # ##???????????# ## | | ????????????????????? #???????????# #? | | ??????????????????????# ##?????# #### #? | | ?????????????????????## @ ## #?????# ## | | ?????????????????????# #?????# #### | | ??????????????????#### #??????????## ## | | ???????????????# ######??????###### | | ???????????????# #????????# | | ???????????????# ########?????????# | | ???????????????# d ##????????????????# | | ??????????????# < #???????????????# | | ??????????????# ### #???????????????# | | ??????????????## #?# #?????####??????# | | ??????????????# ##?# ##???## ##?????# | | ??????????????# ####% ### ###?# #?????# | | ??????????????# #?##; =# ## "#?# ##????# | | ??????????????#######==% # % #??# ##??## | | ?????????????????## *% ! #???# #### | | ????????????????## !% % " # # | | ?????????????#### % "## ##### ## | | ????????????## # ## #### ##? | | ????????????# ## ?### ## ####?? | | ???????????## #######?###????# ##????? | | ??????????## ###????####??????## #?????? | | ?????????## ##????### ##??????## #?????? | | ????????## #???### #???????## ##?????? | | ???????## ##?### #????????## #??????? | | ???????# ##?## ##????????#### #??????? | +----------------------------------------------------+ Best States ------------- Heat Dissipation 25 Energy Generation 14 Energy Capacity 280 Matter Stores 269 Matter Capacity 300 Sight Range 16 Terrain Scan Density 10 Cloak Strength 3 Evasion (%) 45 Item Schematics ----------------- None Robot Schematics ------------------ None Fabricated ------------ Nothing Alien Tech Used ----------------- None Achievements -------------- None Challenges ------------ None Game ------ Seed LightningCoordinationCloak Manual? 0 Play Time 00:08:38 Cumulative 29.3 hours Start 2024.05.04 @ 22:56:36 End 2024.05.04 @ 23:05:06 Sessions 1 Manual Loads 0 Difficulty Rogue Special Mode None Game No. 21 Rogue 21 Adventurer 0 Explorer 0 Win Type - Total 0 Types 0/0/0/0/0/0/0/0/0 Lore% 23 Gallery% 32 Achievement% 28 Wizard Run 0 Options --------- Layout 1 ASCII 0 Keyboard 0 Movement Mouse Keybinds 0 Fullscreen 1 Font 32/SmallcapsGlow Map View 50x35 Zoom Use 0% Tactical HUD 1 Map Filters NONE Filters NONE Steam 1 RUN: 9c1dac87-8482-47b2-850e-15ed657b18a0